Cogmind - Beta 15 @@@ ROGUE MODE // 2025.08.14 @ 13:07:36 Player: beans Result: Destroyed by DAS Turret with DAS Cannon Performance ------------- Evolutions (0) 0 Regions Visited (3) 600 Robots Destroyed (2) 10 Value Destroyed (81) 81 Prototype IDs (24) 480 Alien Tech Used (0) 0 Bonus (300) 300 TOTAL SCORE: 1471 Bonus ------- Aligned with FarCom 300 Cogmind --------- Core Integrity 0/250 Matter 280/300 Energy 98/100 System Corruption 1% Temperature Cool (1) Movement Treading (160) Location -10/Exiles Parts ------- > --- POWER (1) -------- (None) > --- PROPULSION (2) --- Light Treads > --- UTILITY (2) ------ Targeting Computer Cloak of Protection > --- WEAPON (2) ------- Small Laser > --- INVENTORY (5) ---- Light Fission Core Heat Sink Seismic Detector Thief Drone Bay (3/3) Peak State ------------ > --- POWER ------------ (None) > --- PROPULSION ------- Light Treads > --- UTILITY ---------- Targeting Computer Cloak of Protection > --- WEAPON ----------- Small Laser > --- INVENTORY -------- Light Fission Core Heat Sink Seismic Detector Thief Drone Bay [Rating: 12] Favorites ----------- Power Ion Engine Engine Ion Engine Propulsion Light Treads Treads Light Treads Utility Targeting Computer Device Heat Sink Processor Targeting Computer Weapon Small Laser Energy Gun Small Laser Build | -11 -10 -10 -10 ------- Run | Yrd Mat Min Exi Slots Evolved . | . . . . Power . | . . . . Propulsion . | . . . . Utility . | . . . . Weapon . | . . . . Parts Attached 9 | 4 1 3 1 Power 1 | 1 . . . Engine 1 | 1 . . . Core . | . . . . Reactor . | . . . . Propulsion 2 | 2 . . . Treads 2 | 2 . . . Leg . | . . . . Wheel . | . . . . Hover . | . . . . Flight . | . . . . Utility 5 | . 1 3 1 Device 4 | . . 3 1 Storage . | . . . . Processor 1 | . 1 . . Hackware . | . . . . Protection . | . . . . Artifact . | . . . . Weapon 1 | 1 . . . Energy Gun 1 | 1 . . . Energy Cannon . | . . . . Ballistic Gun . | . . . . Ballistic Cannon . | . . . . Launcher . | . . . . Special Weapon . | . . . . Impact Weapon . | . . . . Slashing Weapon . | . . . . Piercing Weapon . | . . . . Special Melee Weapon . | . . . . Unidentified Prototypes 1 | . . 1 . Parts Lost 2 | . . 2 . Power 1 | . . 1 . Propulsion 1 | . . 1 . Utility . | . . . . Weapon . | . . . . Highest Loss Streak 1 | . . 1 . To Critical Strikes . | . . . . Average Backups 1 | . . . 3 Power . | . . . . Propulsion . | . . . . Utility 1 | . . . 2 Weapon . | . . . . Tool/Special . | . . . . Unused Backups 1 | . . . 1 Power 1 | . . . 1 Propulsion . | . . . . Utility . | . . . . Weapon . | . . . . Tool/Special . | . . . . Average Slot Usage (%) 59 | . 58 62 57 Engine 4 | . 14 5 . Treads 17 | . 28 18 14 Device 10 | . . 9 14 Processor 12 | . 1 14 14 Energy Gun 14 | . 14 14 14 Peak Build Rating 12 | 4 5 10 12 Average Rating 6 | 2 4 5 7 On Entrance 3 | . 4 5 4 Naked Turns . | . . . . Heaviest Build 9 | 6 6 7 9 Greatest Support 40 | 40 40 40 20 Greatest Overweight (x) 1 | 1 . . . Average Overweight (x) . | . . . . Largest Inventory Capacity 5 | 5 5 5 5 Average Capacity 5 | 5 5 5 5 Most Carried 4 | 2 1 2 4 Average Carried 1 | . . . 3 Final Capacity 5 | 5 5 5 5 Final Carried 4 | . . 2 4 Class Distribution -------------------- 100% | Mutant Dominant Class ---------------- Mutant | -10/Materials Mutant | -10/Mines Mutant | -10/Exiles Resources | -11 -10 -10 -10 ----------- Run | Yrd Mat Min Exi Matter Collected 265 | 239 . 26 . Remotely . | . . . . Salvage Created 80 | . . 80 . Parts 5 | . . 5 . Haulers Intercepted . | . . . . Recyclers Shooed 1 | . . 1 . Parts Field Recycled . | . . . . Retrieved Matter . | . . . . Parts Self-Destructed . | . . . . Prevented . | . . . . Kills | -11 -10 -10 -10 ------- Run | Yrd Mat Min Exi Combat Hostiles Destroyed 2 | . . 2 . Guns 2 | . . 2 . Classes Destroyed 1 | . . 1 . Grunt 2 | . . 2 . Best Kill Streak 2 | . . 2 . Combat Bots Only 2 | . . 2 . Max Kills in Single Turn 1 | . . 1 . Gunslinging . | . . . . Exploded . | . . . . Melee . | . . . . Uniques/NPCs Destroyed . | . . . . Combat | -11 -10 -10 -10 -------- Run | Yrd Mat Min Exi Hostile Shots Fired 23 | . . 17 6 Missed 2 | . . 1 1 Hits 21 | . . 16 5 Projectile 21 | . . 16 5 AOE 9 | . . 9 . Damage Taken 661 | . 18 490 153 Core 254 | . . 179 75 Absorbed by Shields . | . . . . Core Remaining (%) 100 | 100 . . . Volleys Fired 13 | 1 . 12 . Largest 1 | 1 . 1 . Hottest 40 | 40 . 40 . Shots Fired 14 | 1 . 12 1 Gun 14 | 1 . 12 1 Cannon . | . . . . Launcher . | . . . . Special . | . . . . Kinetic . | . . . . Thermal 14 | 1 . 12 1 Explosive . | . . . . Electromagnetic . | . . . . Robot Hit Streak 9 | 1 . 9 . Robot Miss Streak 3 | . . 3 1 Penetration Max . | . . . . Secondary Targets . | . . . . Shots Hit Robots 10 | 1 . 9 . Core Hits 5 | . . 5 . Critical Kills . | . . . . Critical Parts Destroyed . | . . . . Critical Strikes . | . . . . Melee Attacks . | . . . . Impact . | . . . . Slashing . | . . . . Piercing . | . . . . Sneak Attacks . | . . . . Combat Hostiles . | . . . . Follow-up Attacks . | . . . . Damage Inflicted 113 | 10 . 103 . Guns 108 | 10 . 98 . Cannons . | . . . . Explosions . | . . . . Melee . | . . . . Ramming 5 | . . 5 . Kinetic . | . . . . Thermal 108 | 10 . 98 . Explosive . | . . . . Electromagnetic . | . . . . Impact . | . . . . Slashing . | . . . . Piercing . | . . . . Highest Corruption 1 | . 1 1 1 Average Corruption 1 | . 1 1 1 Corruption Purged . | . . . . Corruption Blocked . | . . . . Effects 5 | . . 1 4 Message Errors 1 | . . 1 . Heat Flow Errors 1 | . . . 1 Data Loss (minor) 1 | . . . 1 Data Loss (major) 1 | . . . 1 Misfires 1 | . . . 1 Overload Shots . | . . . . Overflow Damage . | . . . . Projectiles . | . . . . Explosions . | . . . . Melee . | . . . . Knockbacks . | . . . . Impact . | . . . . Kinetic . | . . . . Secondary . | . . . . Self-Inflicted Damage . | . . . . Shots . | . . . . Rammed 1 | . . 1 . Targets Rammed 1 | . . 1 . Kicked . | . . . . Crushed . | . . . . Highest Temperature 115 | . . 13 115 Average Temperature 27 | . . 6 66 Received Heat Transfer 51 | . . 51 . Siege Activations . | . . . . Martial Activations . | . . . . Shielding Activations . | . . . . Robots Disrupted . | . . . . Combat Hostiles . | . . . . Robots Corrupted . | . . . . Combat Hostiles . | . . . . Parts Fried . | . . . . Impact Corruptions . | . . . . Robots Melted . | . . . . Combat Hostiles . | . . . . Parts Melted . | . . . . Heat Transferred 250 | 25 . 225 . Parts Sabotaged . | . . . . Parts Stolen . | . . . . Parts Stripped . | . . . . Power Chain Reactions . | . . . . Alert | -11 -10 -10 -10 ------- Run | Yrd Mat Min Exi Maximum Alert Level . | . . . . Low Security (%) 100 | 100 100 100 . Level 1 . | . . . . Level 2 . | . . . . Level 3 . | . . . . Level 4 . | . . . . Level 5 . | . . . . High Security . | . . . . Max Security . | . . . . Peak Influence 50 | . . 50 . Initial . | . . . . Average 3 | . . 4 . Influence Increases 50 | . . 50 . Destroy 0b10 Robot/C 40 | . . 40 . Destroy Leader 10 | . . 10 . Influence Decreases 50 | . . 50 . Time Decay 50 | . . 50 . Squads Dispatched . | . . . . Investigation . | . . . . Extermination . | . . . . Reinforcement . | . . . . Assault . | . . . . Garrison . | . . . . Intercept . | . . . . Searches Triggered . | . . . . Construction Impeded . | . . . . Haulers Reinforced . | . . . . Active Scanning Responses . | . . . . Cargo Convoy Interrupts . | . . . . Stealth | -11 -10 -10 -10 --------- Run | Yrd Mat Min Exi Distress Signals . | . . . . Communications Jammed . | . . . . Distress Signals . | . . . . Times Spotted 6 | . . 4 2 Peak Tracking Total 10 | . . 2 10 Tactical Retreats . | . . . . Traps | -11 -10 -10 -10 ------- Run | Yrd Mat Min Exi Traps Triggered 1 | . 1 . . Indirectly . | . . . . Trap Hack Attempts . | . . . . Triggered . | . . . . Disarmed . | . . . . Reprogrammed . | . . . . Reused . | . . . . Traps Extracted . | . . . . Installed . | . . . . Triggered . | . . . . Machines | -11 -10 -10 -10 ---------- Run | Yrd Mat Min Exi Machines Disabled . | . . . . Max in Single Turn . | . . . . Machines Repaired . | . . . . Machines Dismantled . | . . . . Machines Sabotaged . | . . . . Overloaded Fab Kills . | . . . . Hacking | -11 -10 -10 -10 --------- Run | Yrd Mat Min Exi Machines Accessed 2 | . . 1 1 Terminals . | . . . . Fabricators . | . . . . Repair Stations . | . . . . Recycling Units . | . . . . Scanalyzers . | . . . . Garrison Access . | . . . . Total Hacks 2 | . . 1 1 Successful 2 | . . 1 1 Failed . | . . . . Catastrophic . | . . . . Database Lockouts . | . . . . Manual 1 | . . . 1 Terminals . | . . . . Fabricators . | . . . . Repair Stations . | . . . . Recycling Units . | . . . . Scanalyzers . | . . . . Garrison Access . | . . . . Terminal Hacks 2 | . . 1 1 Open Door 1 | . . 1 . Proto ID Catalog 1 | . . . 1 Fabricator Hacks . | . . . . Repair Station Hacks . | . . . . Recycling Unit Hacks . | . . . . Scanalyzer . | . . . . Garrison Access Hacks . | . . . . Unauthorized Hacks . | . . . . Terminals . | . . . . Fabricators . | . . . . Repair Stations . | . . . . Recycling Units . | . . . . Scanalyzers . | . . . . Garrison Access . | . . . . Data Cores Recovered . | . . . . Used . | . . . . Hacking Detections . | . . . . Full Trace Events . | . . . . Feedback Events . | . . . . Feedback Blocked . | . . . . Robot Schematics Acquired . | . . . . Robots Built . | . . . . Authchips . | . . . . Time . | . . . . Total Robot Build Rating . | . . . . Part Schematics Acquired . | . . . . Parts Built . | . . . . Authchips . | . . . . Time . | . . . . Total Part Build Rating . | . . . . Parts Repaired . | . . . . Time . | . . . . Parts Recycled . | . . . . Recycled Matter . | . . . . Retrieved Matter . | . . . . Retrieved Components . | . . . . Parts Scanalyzed . | . . . . Part Schematics Acquired . | . . . . Parts Damaged . | . . . . Bothacking | -11 -10 -10 -10 ------------ Run | Yrd Mat Min Exi Used RIF Installer . | . . . . Robots Hacked . | . . . . Non-combat . | . . . . Combat . | . . . . Robot Hacks Applied . | . . . . Relay Couplers Released . | . . . . Fabnet Peak Effective % . | . . . . Robots Rewired . | . . . . Allies Hacked . | . . . . Hacks Repelled . | . . . . Allies | -11 -10 -10 -10 -------- Run | Yrd Mat Min Exi Total Allies . | . . . . Largest Group . | . . . . Highest-Rated Group . | . . . . Highest-Rated Ally . | . . . . Total Orders 1 | . . 1 . RETURN 1 | . . 1 . Ally Attacks . | . . . . Total Damage . | . . . . Kills . | . . . . Allies Corrupted . | . . . . Allies Melted . | . . . . Intel | -11 -10 -10 -10 ------- Run | Yrd Mat Min Exi Active Infowar (turns) 124 | . . 117 7 Seismic 117 | . . 117 . Cloaking 7 | . . . 7 Robot Analysis Total . | . . . . Derelict Logs Recovered . | . . . . Drone Launches 1 | . . 1 . Drone Recoveries 1 | . . 1 . Exploration | -11 -10 -10 -10 ------------- Run | Yrd Mat Min Exi Turns Passed 1095 | 47 90 577 381 Spaces Moved 603 | 32 56 280 235 Core 15 | 15 . . . Treads 588 | 17 56 280 235 Legs . | . . . . Wheels . | . . . . Hover . | . . . . Flight . | . . . . Fastest Speed 50 | 50 160 160 160 Average Speed 157 | 117 160 160 160 Slowest Speed 160 | 160 160 160 160 Overloaded Moves . | . . . . Propulsion Burnouts . | . . . . Robots Hopped . | . . . . Potential Cave-ins . | . . . . Cave-ins Triggered . | . . . . Exploration Rate (%) 34 | 4 15 59 58 Regions Visited 3 Branch Regions 2 Pre-discovered Areas . | . . . . Known Exits Taken . | . . . . Unknown Exits Taken 3 | 1 1 1 . Scrap Searched 1 | . . 1 . Spaces Dug . | . . . . Terrain Destroyed . | . . . . Melee . | . . . . Projectile . | . . . . AOE . | . . . . Terrain Rammed . | . . . . Walls Destroyed . | . . . . Machines Disabled . | . . . . Actions | -11 -10 -10 -10 --------- Run | Yrd Mat Min Exi Total 734 | 40 57 396 241 Wait 101 | . . 98 3 Move 600 | 31 55 279 235 Hop . | . . . . Pick Up 10 | 4 1 3 2 Fast Attach . | . . . . Attach 6 | 4 1 1 . Detach . | . . . . Swap 3 | . . 2 1 Drop . | . . . . Fire 13 | 1 . 12 . Melee . | . . . . Ram . | . . . . Kick . | . . . . Crush 1 | . . 1 . Escape Stasis . | . . . . Rewire . | . . . . Trap . | . . . . Miscellaneous . | . . . . Route ------- -11/Scrapyard -10/Materials -10/Mines (discovered 2 exits: [*Mat] / *Exi) -10/Exiles History --------- Turn | Location | Event 3 | -11/Scrapyard | Discovered new exit (range 15) 48 | -11/Scrapyard | Entered Materials 109 | -10/Materials | Discovered new exit (range 15) 138 | -10/Materials | Entered Mines 162 | -10/Mines | Met a Derelict bent on vengeance 173 | -10/Mines | Assembled infested the area 303 | -10/Mines | Core integrity fell below 50% 315 | -10/Mines | Build established: Mutant 351 | -10/Mines | Discovered new exit (range 7) 421 | -10/Mines | Found the Drone Emporium 431 | -10/Mines | Found Prototype Device 432 | -10/Mines | Identified Thief Drone Bay 655 | -10/Mines | A weapon hastily lodged in a ceiling crevice suddenly fell to the ground 709 | -10/Mines | Deemed a non-threat by the Exiles lab entrance 709 | -10/Mines | Discovered new exit (range 5) 715 | -10/Mines | Entered Exiles 755 | -10/Exiles | Met 8R-AWN 835 | -10/Exiles | Met EX-HEX 880 | -10/Exiles | Met EX-BIN 900 | -10/Exiles | Aligned with FarCom system 902 | -10/Exiles | Given EX-Vault access code 939 | -10/Exiles | Opened EX-Vault 948 | -10/Exiles | Found Cloak of Protection 984 | -10/Exiles | Warned to stay clear of 0b10 Research branches 1031 | -10/Exiles | Met EX-DEC 1093 | -10/Exiles | Attacked by the Exiles 1096 | -10/Exiles | Destroyed by DAS Turret with DAS Cannon Last Messages --------------- distributed network. EX-BIN: And don't even think about spreading that code around. We're gonna change it right after you leave. Most certainly not to something like 1234 which I did last time as a little joke and some thief managed to sneak in here and steal a few of HEX's prototypes. EX-DEC: Ah I see we have a visitor. One wrong move in here and I'll invert your atomic chain! EX-DEC: "Oops, I hope HEX didn't hear that..." System corrupted: Component data lost. System corrupted: FCS attempts to trigger Sml. Laser. System corrupted: Sml. Laser misfires. EXILES: Hostile robot within lab perimeter. Defensive protocols time, folks! Machine disabled. EX-DEC: "Let's see what this bad boy can do..." EX-DEC deploys DAS Turret. Map ----- +----------------------------------------------------+ | ???????????????????????????????????#""""""?# # | | ????????????????????????????????????#"###??# # | | ???????????????????????????????????????????# # | | ???????????????????????????????????????????# # | | ??????????????????????????????????????????## # | | ??????????????????????????????????????????#" | | ??????????????????????????????????????????#" | | ??????????????????????????????????????????#" | | ??????????????????????????????????????????#" | | ??????????????????????????????????????????#" | | ??????????????????????????????????????????#" | | ??????????????????????????????????????????## | | ???????????????????????????????????????????# | | ??????????????????????????????? ???????????#" | | ??????????????????????????????? ??????????#" | | ?????????????????????????????? ""?????????#" | | ????????????? #?????????????? "?????????##" # | | ????????????? ????????????# #????????##"" # | | ????????????" #####????### ###?######"" # | | ????????????" """#####X# #"###""""""" # | | ????????????" """""" " "" | | ?????????????# "" """ " | | ??????????????# " " | | ????????????????# | | ??????????????????# % | | ???????????????????# @ | | ???????????????????## % | | ????????????????????##" | | ?????????????????????#"" """""" | | ????????????????????##" ######""" | | ????????????????????#"" z ""##????##### | | ???????????????????##""" """##?????????# | | ???????????????????#""" """##??????????? | | ???????????????????#""" ""#???????????? | | ???????????????????#"" ###??##??????? | | ???????????????????#""" ## #?????? | | ???????????????????#"" "???? | | ???????????????????##""t ???? | | ????????????????????#"""" ??? | | ????????????????????## c ??? | | ?????????????????????#" " ???? " | | ?????????????????????#"""" ""??????? | | ?????????????????????#"" ""##??????? | | ?????????????????????#" """"##???????? | | ?????????????????????#""" """#????????? | | ?????????????????????## ""#?????????? | | ??????????????????????#"" """##?????????? | | ??????????????????????##""" ##??????????? | | ???????????????????????##"""" ##???????????? | | ????????????????????????### #????????????? | +----------------------------------------------------+ Best States ------------- Heat Dissipation 35 Energy Generation 10 Energy Capacity 250 Matter Stores 300 Matter Capacity 300 Sight Range 16 Terrain Scan Density 10 Cloak Strength 5 Evasion (%) 40 Targeting Accuracy 5 Recoil Reduction 2 Item Schematics ----------------- None Robot Schematics ------------------ None Fabricated ------------ Nothing Repaired ---------- Nothing Alien Tech Used ----------------- None Achievements -------------- None Challenges ------------ None Game ------ Seed ShadeTripodAutohacker Manual? 0 Play Time 00:07:54 Cumulative 89.0 hours Start 2025.08.14 @ 12:59:11 End 2025.08.14 @ 13:07:36 Sessions 1 Manual Loads 0 Difficulty Rogue Special Mode None Game No. 350 Rogue 350 Adventurer 0 Explorer 0 Win Type - Total 0 Types 0/0/0/0/0/0/0/0/0/0 Lore% 37 Gallery% 37 Achievement% 30 Wizard Run 0 Options --------- Layout 2 ASCII 0 Keyboard 0 Movement Mouse Keybinds 0 Fullscreen 2 Font 24/Smallcaps Map View 50x44 Zoom Use 0% Tactical HUD 0 Map Filters NONE Filters NONE Steam 1 RUN: 2013ddc1-9cda-4593-8e05-a386355c6000